fUSD/lending_fUSD_20260405
["ID","MTS","AMOUNT","RATE_DAILY","PERIOD"]
[419760880,1775359847578,-150.0,0.00015164,2]
[419760881,1775359847587,-150.0,0.00015168,2]
[419760882,1775359847596,-150.0,0.00015172,2]
[419760883,1775359847605,-159.0467984,0.00015176,2]
[419760884,1775359847614,-183.05573234,0.00015176,2]
[419760885,1775359847623,-150.0,0.00015178,2]
[419760886,1775359847633,-150.0,0.00015188,2]
[419760887,1775359847642,-862.33753078,0.00015189,2]
[419760888,1775359847651,-150.0,0.00015189,2]
[419760889,1775359847661,-150.0,0.00015191,2]
[419760890,1775359847670,-159.0467984,0.00015192,2]
[419760891,1775359847679,-183.05573234,0.00015192,2]
[419760892,1775359847688,-578.20924308,0.00015199,2]
[419760893,1775359847697,-200.0,0.00015199,2]
[419760894,1775359847706,-500.0,0.00015199,2]
[419760895,1775359847715,-500.0,0.00015199,2]
[419760896,1775359847725,-721.12765535,0.00015199,2]
[419760897,1775359847734,-1428.38747117,0.00015199,2]
[419760898,1775359847743,-209.40437684,0.00015199,2]
[419760899,1775359847753,-500.0,0.00015199,2]
[419760900,1775359847763,-500.0,0.00015199,2]
[419760901,1775359847773,-500.0,0.00015199,2]
[419760902,1775359847783,-500.0,0.00015199,2]
[419760903,1775359847791,-500.0,0.00015199,2]
[419760904,1775359847803,-151.0,0.00015199,2]
[419760905,1775359847813,-500.0,0.00015199,2]
[419760906,1775359847823,-151.0,0.00015199,2]
[419760907,1775359847832,-500.0,0.00015199,2]
[419760908,1775359847843,-151.0,0.00015199,2]
[419760909,1775359847852,-500.0,0.00015199,2]
[419760910,1775359847863,-154.76515316,0.00015199,2]
[419760911,1775359847872,-500.0,0.00015199,2]
[419760912,1775359847883,-500.0,0.00015199,2]
[419760913,1775359847892,-250.0,0.00015199,2]
[419760914,1775359847902,-250.0,0.00015199,2]
[419760915,1775359847912,-250.0,0.00015199,2]
[419760916,1775359847924,-250.0,0.00015199,2]
[419760917,1775359847933,-250.0,0.00015199,2]
[419760918,1775359847942,-250.0,0.00015199,2]
[419760919,1775359847951,-250.0,0.00015199,2]
[419760920,1775359847960,-250.0,0.00015199,2]
[419760921,1775359847969,-250.0,0.00015199,2]
[419760922,1775359847978,-250.0,0.00015199,2]
[419760923,1775359847988,-250.0,0.00015199,2]
[419760924,1775359847997,-209.40437684,0.00015199,2]
[419760925,1775359848006,-500.0,0.00015199,2]
[419760926,1775359848015,-500.0,0.00015199,2]
[419760927,1775359848024,-500.0,0.00015199,2]
[419760928,1775359848034,-500.0,0.00015199,2]
[419760929,1775359848045,-500.0,0.00015199,2]
[419760930,1775359848054,-500.0,0.00015199,2]
[419760931,1775359848064,-500.0,0.00015199,2]
[419760932,1775359848073,-174.61919141,0.00015199,2]
[419760933,1775359848082,-500.0,0.00015199,2]
[419760934,1775359848091,-200.0,0.00015199,2]
[419760935,1775359848100,-500.0,0.00015199,2]
[419760936,1775359848109,-151.0,0.00015199,2]
[419760937,1775359848118,-500.0,0.00015199,2]
[419760938,1775359848127,-743.50770149,0.00015199,2]
[419760939,1775359848137,-500.0,0.00015199,2]
[419760940,1775359848145,-157.03985341,0.00015199,2]
[419760941,1775359848154,-693.3919763,0.00015199,2]
[419760942,1775359848164,-500.0,0.00015199,2]
[419760943,1775359848173,-279.9045709,0.00015199,2]
[419760944,1775359848183,-500.0,0.00015199,2]
[419760945,1775359848191,-500.0,0.00015199,2]
[419760946,1775359848200,-500.0,0.00015199,2]
[419760947,1775359848209,-500.0,0.00015199,2]
[419760948,1775359848219,-170.0,0.00015199,2]
[419760949,1775359848228,-170.0,0.00015199,2]
[419760950,1775359848237,-170.0,0.00015199,2]
[419760951,1775359848247,-170.0,0.00015199,2]
[419760952,1775359848256,-170.0,0.00015199,2]
[419760953,1775359848265,-170.0,0.00015199,2]
[419760954,1775359848275,-170.0,0.00015199,2]
[419760955,1775359848283,-170.0,0.00015199,2]
[419760956,1775359848293,-170.0,0.00015199,2]
[419760957,1775359848302,-170.0,0.00015199,2]
[419760958,1775359848311,-170.0,0.00015199,2]
[419760959,1775359848322,-150.0,0.000152,2]
[419760960,1775359848333,-150.0,0.000152,2]
[419760961,1775359848344,-150.0,0.000152,2]
[419760962,1775359848355,-150.0,0.000152,2]
[419760963,1775359848364,-150.0,0.000152,2]
[419760964,1775359848373,-150.0,0.000152,2]
[419760965,1775359848383,-159.0467984,0.00015208,2]
[419760966,1775359848392,-183.05573234,0.00015208,2]
[419760967,1775359848401,-150.0,0.00015209,2]
[419760968,1775359848411,-150.0,0.00015211,2]
[419760969,1775359848420,-150.0,0.00015212,2]
[419760970,1775359848429,-150.0,0.00015222,2]
[419760971,1775359848438,-500.0,0.00015224,2]
[419760972,1775359848448,-565.9,0.00015224,2]
[419760973,1775359848458,-874.7,0.00015224,2]
[419760974,1775359848467,-159.0467984,0.00015224,2]
[419760975,1775359848476,-183.05573234,0.00015224,2]
[419760976,1775359848486,-166.66,0.00015225,2]
[419760977,1775359848496,-150.0,0.00015228,2]
[419760978,1775359848506,-150.0,0.00015232,2]
[419760979,1775359848516,-150.0,0.00015236,2]
[419760980,1775359848527,-150.0,0.0001524,2]
[419760981,1775359848536,-159.0467984,0.0001524,2]
[419760982,1775359848546,-183.05573234,0.0001524,2]
[419760983,1775359848555,-150.0,0.00015243,2]
[419760984,1775359848564,-150.0,0.00015247,2]
[419760985,1775359848573,-150.0,0.0001525,2]
[419760986,1775359848582,-150.0,0.00015253,2]
[419760987,1775359848591,-500.0,0.00015254,2]
[419760988,1775359848600,-151.0,0.00015254,2]
[419760989,1775359848610,-159.0467984,0.00015257,2]
[419760990,1775359848620,-183.05573234,0.00015257,2]
[419760991,1775359848631,-150.0,0.0001526,2]
[419760992,1775359848640,-150.0,0.00015265,2]
[419760993,1775359848649,-150.0,0.00015266,2]
[419760994,1775359848658,-159.0467984,0.00015273,2]
[419760995,1775359848667,-183.05573234,0.00015273,2]
[419760996,1775359848676,-150.0,0.00015273,2]
[419760997,1775359848686,-150.0,0.00015275,2]
[419760998,1775359848696,-150.0,0.0001528,2]
[419760999,1775359848704,-785.67,0.0001528,2]
[419761000,1775359848714,-150.0,0.00015284,2]
[419761001,1775359848723,-150.0,0.00015285,2]
[419761002,1775359848732,-150.0,0.00015286,2]
[419761003,1775359848741,-159.0467984,0.00015289,2]
[419761004,1775359848750,-183.05573234,0.00015289,2]
[419761005,1775359848759,-150.0,0.00015289,2]
[419761006,1775359848768,-150.0,0.00015296,2]
[419761007,1775359848777,-1000.0,0.00015298,2]
[419761008,1775359848786,-1000.0,0.00015298,2]
[419761009,1775359848795,-1000.0,0.00015298,2]
[419761010,1775359848804,-1000.0,0.00015298,2]
[419761011,1775359848813,-1000.0,0.00015298,2]
[419761012,1775359848822,-1000.0,0.00015298,2]
[419761013,1775359848831,-920.84825679,0.00015298,2]
[419761014,1775359848840,-1000.0,0.00015298,2]
[419761015,1775359848849,-502.13162569,0.00015298,2]
[419761016,1775359848858,-150.0,0.000153,2]
[419761017,1775359848867,-1264.06,0.00015302,2]
[419761018,1775359848876,-203.96604798,0.00015303,2]
[419761019,1775359848886,-150.0,0.00015304,2]
[419761020,1775359848895,-159.0467984,0.00015305,2]
[419761021,1775359848904,-183.05573234,0.00015305,2]
[419761022,1775359848913,-150.0,0.00015307,2]
[419761023,1775359848922,-150.0,0.00015308,2]
[419761024,1775359848931,-500.0,0.00015309,2]
[419761025,1775359848940,-151.0,0.00015309,2]
[419761026,1775359848949,-2068.30323739,0.00015316,2]
[419761027,1775359848958,-2000.0,0.00015316,2]
[419761028,1775359848968,-2000.0,0.00015316,2]
[419761029,1775359848977,-2000.0,0.00015316,2]
[419761030,1775359848986,-2000.0,0.00015316,2]
[419761031,1775359848995,-150.0,0.00015317,2]
[419761032,1775359849004,-150.0,0.0001532,2]
[419761033,1775359849014,-159.0467984,0.00015321,2]
[419761034,1775359849023,-183.05573234,0.00015321,2]
[419761035,1775359849032,-150.0,0.00015322,2]
[419761036,1775359849042,-150.0,0.0001533,2]
[419761037,1775359849052,-150.0,0.00015331,2]
[419761038,1775359849061,-1500.0,0.00015334,2]
[419761039,1775359849071,-1500.0,0.00015334,2]
[419761040,1775359849080,-159.0467984,0.00015337,2]
[419761041,1775359849091,-183.05573234,0.00015337,2]
[419761042,1775359849101,-150.0,0.00015339,2]
[419761043,1775359849112,-150.0,0.00015341,2]
[419761044,1775359849122,-432.23819105,0.00015342,2]
[419761045,1775359849132,-2000.0,0.00015342,2]
[419761046,1775359849143,-643.48326881,0.00015342,2]
[419761047,1775359849154,-2000.0,0.00015342,2]
[419761048,1775359849164,-150.0,0.00015345,2]
[419761049,1775359849174,-150.0,0.0001535,2]
[419761050,1775359849183,-150.0,0.00015351,2]
[419761051,1775359849192,-159.0467984,0.00015354,2]
[419761052,1775359849201,-183.05573234,0.00015354,2]
[419761053,1775359849211,-150.0,0.00015355,2]
[419761054,1775359849221,-474.28,0.00015359,2]
[419761055,1775359849232,-474.25,0.00015359,2]
[419761056,1775359849242,-474.25,0.00015359,2]
[419761057,1775359849251,-150.0,0.0001536,2]
[419761058,1775359849262,-150.0,0.0001536,2]
[419761059,1775359849273,-150.0,0.0001536,2]
[419761060,1775359849283,-150.0,0.0001536,2]
[419761061,1775359849293,-736.0,0.00015363,2]
[419761062,1775359849304,-500.0,0.00015364,2]
[419761063,1775359849315,-151.0,0.00015364,2]
[419761064,1775359849325,-159.0467984,0.0001537,2]
[419761065,1775359849337,-183.05573234,0.0001537,2]
[419761066,1775359849347,-150.0,0.00015373,2]
[419761067,1775359849357,-150.0,0.00015379,2]
[419761068,1775359849367,-150.0,0.00015379,2]
[419761069,1775359849377,-150.0,0.00015381,2]
[419761070,1775359849387,-5888.0,0.00015382,2]
[419761071,1775359849397,-159.0467984,0.00015386,2]
[419761072,1775359849408,-183.05573234,0.00015386,2]
[419761073,1775359849418,-150.0,0.00015395,2]
[419761074,1775359849429,-150.0,0.00015398,2]
[419761075,1775359849439,-1000.0,0.00015398,2]
[419761076,1775359849448,-1000.0,0.00015398,2]
[419761077,1775359849459,-350.0,0.00015399,2]
[419761078,1775359849468,-150.0,0.000154,2]
[419761079,1775359849479,-150.0,0.000154,2]
[419761080,1775359849488,-1541.97906342,0.00015401,2]
[419761081,1775359849498,-159.0467984,0.00015402,2]
[419761082,1775359849509,-183.05573234,0.00015402,2]
[419761083,1775359849520,-150.0,0.00015403,2]
[419761084,1775359849530,-150.0,0.00015403,2]
[419761085,1775359849540,-1000.0,0.00015406,2]
[419761086,1775359849550,-189.74788311,0.00015406,2]
[419761087,1775359849560,-5398.87950791,0.0001541,2]
[419761088,1775359849570,-350.0,0.00015414,2]
[419761089,1775359849580,-150.0,0.00015416,2]
[419761090,1775359849589,-150.0,0.00015416,2]
[419761091,1775359849600,-159.0467984,0.00015418,2]
[419761092,1775359849610,-183.05573234,0.00015418,2]
[419761093,1775359849620,-150.0,0.00015418,2]
[419761094,1775359849631,-500.0,0.00015419,2]
[419761095,1775359849641,-151.0,0.00015419,2]
[419761096,1775359849651,-150.0,0.00015424,2]
[419761097,1775359849661,-150.0,0.00015427,2]
[419761098,1775359849671,-159.0467984,0.00015434,2]
[419761099,1775359849681,-183.05573234,0.00015434,2]
[419761100,1775359849690,-150.0,0.00015435,2]
[419761101,1775359849700,-150.0,0.00015438,2]
[419761102,1775359849710,-150.0,0.0001544,2]
[419761103,1775359849719,-1000.0,0.00015444,2]
[419761104,1775359849729,-1000.0,0.00015444,2]
[419761105,1775359849738,-180.00096908,0.00015444,2]
[419761106,1775359849749,-1000.0,0.00015444,2]
[419761107,1775359849758,-500.33264559,0.00015444,2]
[419761108,1775359849769,-1000.0,0.00015444,2]
[419761109,1775359849779,-150.0,0.00015445,2]
[419761110,1775359849789,-31396.2085423,0.00015446,2]
[419761111,1775359851069,-724.52792935,0.00015446,2]
[419761112,1775359851078,-150.0,0.0001545,2]
[419761113,1775359851088,-159.0467984,0.00015451,2]
[419761114,1775359851097,-183.05573234,0.00015451,2]
[419761115,1775359851107,-150.0,0.00015451,2]
[419761116,1775359851117,-75.0218008,0.00015452,2]
[419761117,1775359851168,-325.02024,0.00015452,2]
[419761118,1775359851244,-8.6779592,0.00015452,2]
[419761119,1775359851256,-150.0,0.00015454,2]
[419761120,1775359851266,-150.0,0.00015459,2]
[419761121,1775359851275,-159.0467984,0.00015467,2]
[419761122,1775359851285,-150.0,0.00015467,2]
[419761123,1775359851294,-150.0,0.00015467,2]
[419761124,1775359851305,-183.05573234,0.00015467,2]
[419761125,1775359851316,-150.0,0.00015467,2]
[419761126,1775359851327,-165.82094526,0.0001547,2]
[419761127,1775359851338,-1000.0,0.0001547,2]
[419761128,1775359851348,-150.0,0.00015473,2]
[419761129,1775359851357,-199.32851548,0.00015474,2]
[419761130,1775359853410,-900.0,0.000129,4]
[419761131,1775359853420,-300.67148452,0.00015474,2]
[419761132,1775359853430,-151.0,0.00015474,2]
[419761133,1775359853439,-150.0,0.00015475,2]
[419761134,1775359853448,-150.0,0.0001548,2]
[419761135,1775359853457,-136.32851548,0.00015481,2]
[419761136,1775359853506,-13.67148452,0.00015481,2]
[419761137,1775359853515,-212.23593966,0.00015483,2]
[419761138,1775359853524,-1000.0,0.00015483,2]
[419761139,1775359853533,-1000.0,0.00015483,2]
[419761140,1775359853543,-1000.0,0.00015483,2]
[419761141,1775359853552,-1000.0,0.00015483,2]
[419761142,1775359853561,-392.40251215,0.00015483,2]
[419761143,1775359853570,-1000.0,0.00015483,2]
[419761144,1775359853579,-1000.0,0.00015483,2]
[419761145,1775359853588,-1000.0,0.00015483,2]
[419761146,1775359853598,-1000.0,0.00015483,2]
[419761147,1775359853607,-159.0467984,0.00015483,2]
[419761148,1775359853616,-183.05573234,0.00015483,2]
[419761149,1775359853626,-150.0,0.00015488,2]
[419761150,1775359853636,-150.0,0.00015491,2]
[419761151,1775359853645,-150.0,0.00015492,2]
[419761152,1775359853654,-5828.23043314,0.00015496,2]
[419761153,1775359854983,-59.76956686,0.00015496,2]
[419761154,1775359854992,-150.0,0.00015499,2]
[419761155,1775359855002,-159.0467984,0.00015499,2]
[419761156,1775359855012,-7.78505396,0.00015499,2]
[419761157,1775359855037,-175.27067838,0.00015499,2]
[419761158,1775359855047,-150.0,0.000155,2]
[419761159,1775359855056,-597.72932162,0.00015501,2]
[419761160,1775359855196,-500.0,0.00015501,2]
[419761161,1775359855236,-902.27067838,0.00015501,2]
[419761162,1775359855247,-150.0,0.00015503,2]
[419761163,1775359855256,-4000.0,0.00015507,2]
[419761164,1775359855265,-150.0,0.00015509,2]
[419761165,1775359855275,-150.0,0.00015511,2]
[419761166,1775359855284,-159.0467984,0.00015515,2]
[419761167,1775359855294,-183.05573234,0.00015515,2]
[419761168,1775359855303,-150.0,0.0001552,2]
[419761169,1775359855314,-150.0,0.00015522,2]
[419761170,1775359855323,-150.0,0.00015524,2]
[419761171,1775359855333,-166.66,0.00015527,2]
[419761172,1775359855341,-500.0,0.00015529,2]
[419761173,1775359855351,-151.0,0.00015529,2]
[419761174,1775359855360,-150.0,0.00015529,2]
[419761175,1775359855369,-150.0,0.00015531,2]
[419761176,1775359855378,-159.0467984,0.00015531,2]
[419761177,1775359855387,-183.05573234,0.00015531,2]
[419761178,1775359855396,-474.25,0.00015534,2]
[419761179,1775359855406,-150.0,0.00015546,2]
[419761180,1775359855415,-150.0,0.00015546,2]
[419761181,1775359855425,-166.66,0.00015546,2]
[419761182,1775359855434,-159.0467984,0.00015547,2]
[419761183,1775359855443,-183.05573234,0.00015547,2]
[419761184,1775359855452,-150.0,0.00015548,2]
[419761185,1775359855462,-150.0,0.0001555,2]
[419761186,1775359855471,-150.0,0.00015552,2]
[419761187,1775359855480,-785.67,0.00015554,2]
[419761188,1775359855490,-150.0,0.0001556,2]
[419761189,1775359855499,-159.0467984,0.00015564,2]
[419761190,1775359855509,-183.05573234,0.00015564,2]
[419761191,1775359855518,-150.0,0.00015564,2]
[419761192,1775359855527,-150.0,0.00015567,2]
[419761193,1775359855537,-150.0,0.00015568,2]
[419761194,1775359855546,-150.0,0.0001557,2]
[419761195,1775359855557,-150.0,0.00015573,2]
[419761196,1775359855568,-1264.10991205,0.00015576,2]
[419761197,1775359855578,-159.0467984,0.0001558,2]
[419761198,1775359855587,-183.05573234,0.0001558,2]
[419761199,1775359855596,-500.0,0.00015584,2]
[419761200,1775359855605,-151.0,0.00015584,2]
[419761201,1775359855615,-150.0,0.00015586,2]
[419761202,1775359855624,-150.0,0.00015589,2]
[419761203,1775359855633,-150.0,0.00015594,2]
[419761204,1775359855642,-150.0,0.00015595,2]
[419761205,1775359855652,-159.0467984,0.00015596,2]
[419761206,1775359855661,-183.05573234,0.00015596,2]
[419761207,1775359855671,-150.0,0.000156,2]
[419761208,1775359855680,-150.0,0.000156,2]
[419761209,1775359855689,-150.0,0.000156,2]
[419761210,1775359855699,-8444.99094408,0.000156,5]
[419761211,1775359855988,-755.00905592,0.000156,5]
[419761212,1775359855998,-2700.0,0.000156,5]
[419761213,1775359856009,-1100.0,0.000156,5]
[419761214,1775359856019,-350.0,0.000156,2]
[419761215,1775359856028,-2000.0,0.00015601,2]
[419761216,1775359856038,-150.0,0.00015605,2]
[419761217,1775359856048,-150.0,0.00015611,2]
[419761218,1775359856059,-159.0467984,0.00015612,2]
[419761219,1775359856068,-183.05573234,0.00015612,2]
[419761220,1775359856078,-150.0,0.00015616,2]
[419761221,1775359856088,-150.0,0.00015618,2]
[419761222,1775359856100,-5888.0,0.00015619,2]
[419761223,1775359856110,-474.28,0.00015621,2]
[419761224,1775359856121,-171.25409793,0.00015623,2]
[419761225,1775359856132,-150.0,0.00015624,2]
[419761226,1775359856143,-159.0467984,0.00015628,2]
[419761227,1775359856153,-183.05573234,0.00015628,2]
[419761228,1775359856163,-150.0,0.00015632,2]
[419761229,1775359856173,-150.0,0.00015636,2]
[419761230,1775359856183,-150.0,0.00015637,2]
[419761231,1775359856193,-500.0,0.00015639,2]
[419761232,1775359856204,-151.0,0.00015639,2]
[419761233,1775359856215,-150.0,0.0001564,2]
[419761234,1775359856225,-5888.0,0.00015641,2]
[419761235,1775359856235,-881.74,0.00015641,2]
[419761236,1775359856245,-150.0,0.00015642,2]
[419761237,1775359856255,-150.0,0.00015642,2]
[419761238,1775359856265,-159.0467984,0.00015644,2]
[419761239,1775359856274,-183.05573234,0.00015644,2]
[419761240,1775359856285,-150.0,0.00015644,2]
[419761241,1775359856295,-5888.0,0.00015647,2]
[419761242,1775359856305,-1000.0,0.00015648,2]
[419761243,1775359856315,-1000.0,0.00015648,2]
[419761244,1775359856324,-150.0,0.0001565,2]
[419761245,1775359856334,-1851.45447901,0.00015653,2]
[419761246,1775359856343,-150.0,0.00015654,2]
[419761247,1775359856353,-350.0,0.00015658,2]
[419761248,1775359856363,-150.0,0.00015659,2]
[419761249,1775359856373,-159.0467984,0.00015661,2]
[419761250,1775359856383,-183.05573234,0.00015661,2]
[419761251,1775359856393,-150.0,0.00015661,2]
[419761252,1775359856403,-744.97357362,0.00015664,2]
[419761253,1775359856415,-150.0,0.00015666,2]
[419761254,1775359856425,-150.0,0.00015676,2]
[419761255,1775359856434,-159.0467984,0.00015677,2]
[419761256,1775359856444,-183.05573234,0.00015677,2]
[419761257,1775359856454,-150.0,0.0001568,2]
[419761258,1775359856464,-150.0,0.0001568,2]
[419761259,1775359856474,-150.0,0.0001568,2]
[419761260,1775359856484,-150.0,0.0001568,2]
[419761261,1775359856495,-150.0,0.0001569,2]
[419761262,1775359856504,-500.0,0.00015691,2]
[419761263,1775359856515,-1000.0,0.00015692,2]
[419761264,1775359856525,-159.0467984,0.00015693,2]
[419761265,1775359856535,-183.05573234,0.00015693,2]
[419761266,1775359856546,-500.0,0.00015694,2]
[419761267,1775359856555,-151.0,0.00015694,2]
[419761268,1775359856564,-150.0,0.00015697,2]
[419761269,1775359856574,-150.0,0.00015699,2]
[419761270,1775359856584,-150.0,0.000157,2]
[419761271,1775359856594,-1800.0,0.000157,5]
[419761272,1775359856605,-500.0,0.000157,5]
[419761273,1775359856615,-200.0,0.000157,5]
[419761274,1775359856626,-2000.0,0.00015701,2]
[419761275,1775359856637,-150.0,0.00015701,2]
[419761276,1775359856647,-474.25,0.00015708,2]
[419761277,1775359856658,-159.0467984,0.00015709,2]
[419761278,1775359856668,-183.05573234,0.00015709,2]
[419761279,1775359856678,-150.0,0.00015709,2]
[419761280,1775359856689,-150.0,0.00015713,2]
[419761281,1775359856699,-168.62746992,0.00015717,2]
[419761282,1775359856709,-850.73139203,0.00015717,2]
[419761283,1775359856720,-150.0,0.00015718,2]
[419761284,1775359856731,-150.0,0.00015719,2]
[419761285,1775359856741,-150.0,0.0001572,2]
[419761286,1775359856751,-150.0,0.00015723,2]
[419761287,1775359856761,-159.0467984,0.00015725,2]
[419761288,1775359856771,-183.05573234,0.00015725,2]
[419761289,1775359856781,-150.0,0.00015736,2]
[419761290,1775359856791,-150.0,0.00015737,2]
[419761291,1775359856800,-1964.81499396,0.0001574,2]
[419761292,1775359856810,-18794.76242306,0.0001574,2]
[419761293,1775359856820,-150.0,0.00015741,2]
[419761294,1775359856831,-159.0467984,0.00015741,2]
[419761295,1775359856841,-183.05573234,0.00015741,2]
[419761296,1775359856851,-181.52928503,0.00015743,2]
[419761297,1775359856861,-208.44018527,0.00015743,2]
[419761298,1775359856870,-233.6042856,0.00015743,2]
[419761299,1775359856880,-150.0,0.00015744,2]
[419761300,1775359856890,-200.0,0.00015747,2]
[419761301,1775359856900,-1481.23780761,0.00015747,2]
[419761302,1775359856911,-217.15233878,0.00015747,2]
[419761303,1775359856920,-339.62894544,0.00015747,2]
[419761304,1775359856931,-181.08010149,0.00015747,2]
[419761305,1775359856941,-200.0,0.00015747,2]
[419761306,1775359856950,-771.01748645,0.00015747,2]
[419761307,1775359856960,-719.04747942,0.00015747,2]
[419761308,1775359856970,-290.26104003,0.00015747,2]
[419761309,1775359856980,-500.0,0.00015749,2]
[419761310,1775359856990,-151.0,0.00015749,2]
[419761311,1775359857000,-150.0,0.0001575,2]
[419761312,1775359857010,-356.0,0.00015753,2]
[419761313,1775359857020,-262.0,0.00015753,2]
[419761314,1775359857030,-367.0,0.00015753,2]
[419761315,1775359857040,-150.0,0.00015755,2]
[419761316,1775359857051,-159.0467984,0.00015758,2]
[419761317,1775359857061,-183.05573234,0.00015758,2]
[419761318,1775359857071,-440.0,0.00015759,2]
[419761319,1775359857081,-150.0,0.0001576,2]
[419761320,1775359857091,-150.0,0.00015761,2]
[419761321,1775359857101,-150.0,0.00015762,2]
[419761322,1775359857111,-150.0,0.00015765,2]
[419761323,1775359857122,-159.0467984,0.00015774,2]
[419761324,1775359857132,-183.05573234,0.00015774,2]
[419761325,1775359857143,-150.0,0.00015774,2]
[419761326,1775359857153,-151.39,0.00015779,2]
[419761327,1775359857163,-151.39,0.00015779,2]
[419761328,1775359857174,-151.39,0.00015779,2]
[419761329,1775359857184,-151.39,0.00015779,2]
[419761330,1775359857194,-150.0,0.00015782,2]
[419761331,1775359857204,-150.0,0.00015784,2]
[419761332,1775359857214,-150.0,0.00015785,2]
[419761333,1775359857224,-150.0,0.00015787,2]
[419761334,1775359857234,-159.0467984,0.0001579,2]
[419761335,1775359857245,-183.05573234,0.0001579,2]
[419761336,1775359857256,-150.0,0.00015793,2]
[419761337,1775359857266,-158.0,0.000158,2]
[419761338,1775359857276,-158.0,0.000158,2]
[419761339,1775359857286,-150.0,0.000158,2]
[419761340,1775359857296,-150.0,0.000158,2]
[419761341,1775359857306,-1800.0,0.000158,5]
[419761342,1775359857316,-500.0,0.000158,5]
[419761343,1775359857327,-200.0,0.000158,5]
[419761344,1775359857337,-2000.0,0.00015801,2]
[419761345,1775359857348,-150.0,0.00015805,2]
[419761346,1775359857358,-159.0467984,0.00015806,2]
[419761347,1775359857369,-183.05573234,0.00015806,2]
[419761348,1775359857379,-150.0,0.00015808,2]
[419761349,1775359857389,-150.0,0.00015809,2]
[419761350,1775359857400,-150.0,0.00015812,2]
[419761351,1775359857409,-1964.81499396,0.0001582,2]
[419761352,1775359857419,-18794.76242306,0.0001582,2]
[419761353,1775359857429,-159.0467984,0.00015822,2]
[419761354,1775359857439,-183.05573234,0.00015822,2]
[419761355,1775359857448,-150.0,0.00015822,2]
[419761356,1775359857459,-440.0,0.00015827,2]
[419761357,1775359857469,-150.0,0.00015827,2]
[419761358,1775359857479,-785.67,0.00015828,2]
[419761359,1775359857489,-166.66,0.00015828,2]
[419761360,1775359857499,-150.0,0.00015829,2]
[419761361,1775359857510,-150.0,0.00015831,2]
[419761362,1775359857520,-150.0,0.00015833,2]
[419761363,1775359857531,-159.0467984,0.00015838,2]
[419761364,1775359857540,-183.05573234,0.00015838,2]
[419761365,1775359857550,-500.0,0.00015839,2]
[419761366,1775359857560,-500.0,0.00015839,2]
[419761367,1775359857570,-1161.86,0.00015839,2]
[419761368,1775359857580,-1161.86,0.00015839,2]
[419761369,1775359857590,-899.16,0.00015839,2]
[419761370,1775359857600,-899.16,0.00015839,2]
[419761371,1775359857610,-500.0,0.00015839,2]
[419761372,1775359857620,-500.0,0.00015839,2]
[419761373,1775359857630,-529.29006668,0.00015839,2]
[419761374,1775359857639,-500.0,0.00015839,2]
[419761375,1775359857650,-500.0,0.00015839,2]
[419761376,1775359857660,-500.0,0.00015839,2]
[419761377,1775359857670,-500.0,0.00015839,2]
[419761378,1775359857681,-565.9,0.00015839,2]
[419761379,1775359857691,-565.9,0.00015839,2]